fUST/lending_fUST_20250509
["ID","MTS","AMOUNT","RATE_DAILY","PERIOD"]
[360320117,1746741043928,-964.12523551,0.00010455,2]
[360320118,1746741043938,-964.12523551,0.00010455,2]
[360320119,1746741043950,-964.12523551,0.00010455,2]
[360320120,1746741043961,-964.12523551,0.00010455,2]
[360320121,1746741043974,-964.12523551,0.00010455,2]
[360320122,1746741043983,-964.12523551,0.00010455,2]
[360320123,1746741043995,-964.12523551,0.00010455,2]
[360320124,1746741044005,-964.12523551,0.00010455,2]
[360320125,1746741044015,-964.12523551,0.00010455,2]
[360320126,1746741044024,-1549.32988381,0.00010455,2]
[360320127,1746741044034,-1549.32988381,0.00010455,2]
[360320128,1746741044045,-1549.32988381,0.00010455,2]
[360320129,1746741044055,-1549.32988381,0.00010455,2]
[360320130,1746741044065,-1549.32988381,0.00010455,2]
[360320131,1746741044075,-1549.32988381,0.00010455,2]
[360320132,1746741044085,-1549.32988381,0.00010455,2]
[360320133,1746741044094,-1549.32988381,0.00010455,2]
[360320134,1746741044104,-1549.32988381,0.00010455,2]
[360320135,1746741044269,-1549.32988381,0.00010455,2]
[360320136,1746741044280,-1549.32988381,0.00010455,2]
[360320137,1746741044290,-1549.32988381,0.00010455,2]
[360320138,1746741044300,-1549.32988381,0.00010455,2]
[360320139,1746741044310,-1549.32988381,0.00010455,2]
[360320140,1746741044320,-1549.32988381,0.00010455,2]
[360320141,1746741044329,-1549.32988381,0.00010455,2]
[360320142,1746741044339,-1549.32988381,0.00010455,2]
[360320143,1746741044348,-1549.32988381,0.00010455,2]
[360320144,1746741044358,-1549.32988381,0.00010455,2]
[360320145,1746741044370,-1549.32988381,0.00010455,2]
[360320146,1746741044381,-1549.32988381,0.00010455,2]
[360320147,1746741044391,-1549.32988381,0.00010455,2]
[360320148,1746741044400,-165.44693439,0.00010455,2]
[360320149,1746741044410,-500.0,0.00010455,2]
[360320150,1746741044419,-500.0,0.00010455,2]
[360320151,1746741044429,-500.0,0.00010455,2]
[360320152,1746741044438,-500.0,0.00010455,2]
[360320153,1746741044449,-500.0,0.00010455,2]
[360320154,1746741044459,-500.0,0.00010455,2]
[360320155,1746741044468,-328.04487845,0.00010455,2]
[360320156,1746741044478,-322.75695211,0.00010455,2]
[360320157,1746741044487,-999.20063949,0.00010456,2]
[360320158,1746741044497,-342920.82294001,0.00010463,2]
[360320265,1746741046122,-15505.6765799,0.00010463,2]
[360320278,1746741046236,-4605.71648,0.00010463,2]
[360320280,1746741046248,-6967.78400009,0.00010463,2]
[360320282,1746741046258,-254.82996776,0.00010473,2]
[360320293,1746741046353,-500.0,0.00010454,2]
[360320295,1746741046362,-346.97646046,0.00010473,2]
[360320297,1746741046372,-376.02353954,0.00010473,2]
[360320489,1746741059574,925.22780491,0.00010166,2]
[360320542,1746741077160,500.0,0.00030137,60]
[360320545,1746741088350,500.0,0.00030137,60]
[360320567,1746741090761,250.0,0.00010166,2]
[360320598,1746741096584,500.0,0.00030137,60]
[360320603,1746741104076,500.0,0.00030137,60]
[360320604,1746741113818,500.0,0.00030137,60]
[360320605,1746741124207,500.0,0.00030137,60]
[360320606,1746741124996,1333.0,0.00029041,120]
[360321984,1746741177040,250.0,0.00010166,2]
[360322606,1746741220616,663.44258,0.00030137,60]
[360323585,1746741287429,500.0,0.00030137,60]
[360323641,1746741290922,-250.0,0.00010255,2]
[360324450,1746741358724,1667.9663516,9.742e-05,2]
[360324670,1746741377046,-189.85827677,0.00010255,2]
[360324789,1746741387136,-60.14172323,0.00010255,2]
[360325543,1746741420937,500.0,0.00030137,60]
[360326830,1746741484610,-192.14655822,0.00010253,2]
[360326890,1746741487692,-57.85344178,0.00010253,2]
[360327515,1746741520103,500.0,0.00030137,60]
[360327956,1746741615797,15146.7804341,9.359e-05,2]
[360328025,1746741913756,774.74429686,0.00029041,120]
[360328038,1746742004401,516.7114551,9.376e-05,2]
[360328039,1746742005070,-250.0,0.00010253,2]
[360328043,1746742078507,250.0,0.00010153,2]
[360328061,1746742186107,250.0,0.00010173,2]
[360328067,1746742205315,500.0,0.00030137,60]
[360328168,1746742238341,-822.79465409,0.00010273,2]
[360328170,1746742238358,-300.0,0.00010346,2]
[360328172,1746742238369,-500.0,0.00010346,2]
[360328175,1746742238380,-500.0,0.00010346,2]
[360328177,1746742238392,-254.21927789,0.00010346,2]
[360328179,1746742238406,-356.16369347,0.00010346,2]
[360328182,1746742238418,-500.0,0.00010346,2]
[360328184,1746742238431,-379.22807588,0.00010346,2]
[360328186,1746742238444,-120.77192412,0.00010346,2]
[360328189,1746742238458,-500.0,0.00010346,2]
[360328191,1746742238469,-500.0,0.00010346,2]
[360328193,1746742238480,-500.0,0.00010346,2]
[360328196,1746742238492,-303.42807573,0.00010346,2]
[360328198,1746742238506,-196.57192427,0.00010346,2]
[360328201,1746742238518,-500.0,0.00010346,2]
[360328203,1746742238529,-500.0,0.00010346,2]
[360328205,1746742238540,-500.0,0.00010346,2]
[360328207,1746742238551,-500.0,0.00010346,2]
[360328208,1746742238561,-21.95154073,0.00010346,2]
[360328209,1746742238575,-478.04845927,0.00010346,2]
[360328211,1746742238587,-500.0,0.00010346,2]
[360328214,1746742238599,-500.0,0.00010346,2]
[360328215,1746742238610,-500.0,0.00010346,2]
[360328216,1746742238621,-500.0,0.00010346,2]
[360328217,1746742238632,-500.0,0.00010346,2]
[360328218,1746742238642,-500.0,0.00010346,2]
[360328219,1746742238651,-500.0,0.00010346,2]
[360328220,1746742238662,-500.0,0.00010346,2]
[360328221,1746742238673,-500.0,0.00010346,2]
[360328222,1746742238682,-500.0,0.00010346,2]
[360328223,1746742238694,-500.0,0.00010346,2]
[360328224,1746742238706,-500.0,0.00010346,2]
[360328225,1746742238716,-31.52264555,0.00010346,2]
[360328449,1746742243371,-468.47735445,0.00010346,2]
[360328450,1746742243383,-500.0,0.00010346,2]
[360328451,1746742243394,-500.0,0.00010346,2]
[360328452,1746742243409,-500.0,0.00010346,2]
[360328454,1746742243421,-500.0,0.00010346,2]
[360328455,1746742243432,-500.0,0.00010346,2]
[360328456,1746742243442,-500.0,0.00010346,2]
[360328458,1746742243455,-500.0,0.00010346,2]
[360328459,1746742243466,-500.0,0.00010346,2]
[360328460,1746742243476,-500.0,0.00010346,2]
[360328461,1746742243486,-500.0,0.00010346,2]
[360328462,1746742243496,-500.0,0.00010346,2]
[360328463,1746742243507,-500.0,0.00010346,2]
[360328464,1746742243517,-500.0,0.00010347,2]
[360328465,1746742243527,-500.0,0.00010347,2]
[360328466,1746742243537,-279.63141492,0.00010347,2]
[360328467,1746742243548,-500.0,0.00010347,2]
[360328468,1746742243559,-500.0,0.00010347,2]
[360328469,1746742243569,-278.82573528,0.00010347,2]
[360328470,1746742243579,-11711.57864211,0.00010348,2]
[360328481,1746742272168,250.0,0.00010173,2]
[360328484,1746742339697,-241.44207187,0.00010248,2]
[360328485,1746742342256,-335.0,0.00010248,2]
[360328488,1746742356192,576.44207187,0.00010206,2]
[360328489,1746742357199,-710.59959409,0.00010248,2]
[360328490,1746742372242,-196.46845104,0.00010248,2]
[360328491,1746742372630,710.59959409,0.00010206,2]
[360328493,1746742379857,250.0,0.00010173,2]
[360328494,1746742387188,-152.64187966,0.00010247,2]
[360328495,1746742388482,196.46845104,0.00010206,2]
[360328496,1746742402260,-147.35812034,0.00010247,2]
[360328497,1746742402284,-59.3797793,0.00010248,2]
[360328498,1746742404176,152.64187966,0.00010206,2]
[360328500,1746742417196,-161.3812113,0.00010248,2]
[360328501,1746742419910,206.73789964,0.00010206,2]
[360328502,1746742432299,-199.72706408,0.00010248,2]
[360328503,1746742435044,161.3812113,0.00010206,2]
[360328504,1746742443606,631.8422033,9.594e-05,2]
[360328505,1746742448918,-300.0,0.00010247,2]
[360328506,1746742448942,-294.24922224,0.00010248,2]
[360328507,1746742450842,199.72706408,0.00010206,2]
[360328508,1746742462827,-300.0,0.00010248,2]
[360328509,1746742467035,594.24922224,0.00010206,2]
[360328510,1746742469129,250.0,0.00010173,2]
[360328511,1746742477226,-250.0,0.00010248,2]
[360328512,1746742483448,550.0,0.00010206,2]
[360328513,1746742492287,-300.0,0.00010248,2]
[360328514,1746742498460,300.0,0.00010206,2]
[360328515,1746742507197,-720.87538888,0.00010248,2]
[360328516,1746742514760,720.87538888,0.00010206,2]
[360328517,1746742522257,-177.87538888,0.00010247,2]
[360328518,1746742530479,177.87538888,0.00010206,2]
[360328519,1746742537236,-322.12461112,0.00010247,2]
[360328520,1746742537262,-265.37581015,0.00010247,2]
[360328521,1746742552888,-129.80220455,0.00010247,2]
[360328522,1746742552914,-67.58764547,0.00010247,2]
[360328523,1746742567183,-300.0,0.00010247,2]
[360328524,1746742583332,250.0,0.00010147,2]
[360328525,1746742586506,-300.0,0.00010247,2]
[360328526,1746742597842,-184.93790364,0.00010246,2]
[360328527,1746742598142,200.23518423,0.00010147,2]
[360328528,1746742612182,-154.87321133,0.00010246,2]
[360328529,1746742628378,-160.18888503,0.00010245,2]
[360328530,1746742632483,1000.0,0.00010147,2]
[360328531,1746742642452,-139.81111497,0.00010245,2]
[360328532,1746742642493,-12.14027227,0.00010246,2]
[360328533,1746742657238,-148.04861276,0.00010246,2]
[360328534,1746742657278,-15.34491294,0.00010246,2]
[360328535,1746742669395,250.0,0.00010147,2]
[360328536,1746742672888,-204.97121483,0.00010246,2]
[360328539,1746742687239,-151.0,0.00010245,2]
[360328540,1746742699149,170.31286134,0.00029041,120]
[360328541,1746742702699,-149.0,0.00010245,2]
[360328542,1746742702738,-279.68387223,0.00010246,2]
[360328543,1746742702775,-307.29947224,0.00010246,2]
[360328544,1746742714564,500.0,0.00030137,60]
[360328545,1746742717168,-300.0,0.00010245,2]
[360328546,1746742719294,-200.0,0.00010245,2]
[360328547,1746742719333,-100.0,0.00010245,2]
[360328548,1746742732274,-164.01665553,0.00010245,2]
[360328549,1746742747249,-300.0,0.00010244,2]
[360328550,1746742777030,250.0,0.00010146,2]
[360328554,1746742863255,250.0,0.00010146,2]
[360328555,1746742864496,-265.16246971,0.00010243,2]
[360328556,1746742911821,7904.7872775,9.253e-05,2]
[360328557,1746742923681,-152.0,0.00010243,2]
[360328559,1746742947241,246.54711895,0.00010145,2]
[360328560,1746742970766,250.0,0.00010143,2]
[360328561,1746743056874,250.0,0.00010143,2]
[360328584,1746743272186,205.66280888,0.000246,120]
[360328587,1746743282915,195.923,0.0003,60]
[360328593,1746743312960,570.4236708,0.0003,60]
[360328595,1746743316555,3217.47034587,0.00023001,120]
[360328597,1746743317704,1083.20837573,0.000278,120]
[360328602,1746743321542,151.82758785,0.0003,120]
[360328603,1746743322479,150.0,0.0002102,62]
[360328604,1746743324446,1362.46596747,0.0003,120]
[360328607,1746743325194,3048.23736514,0.0003,120]
[360328608,1746743325760,358.05196634,0.00024,120]
[360328610,1746743327365,1150.36425535,0.00025,120]
[360328635,1746743424032,500.0,0.00030137,60]
[360328734,1746743439122,-1200.0,0.00010239,2]
[360328736,1746743439132,-11764.95179217,0.0001024,2]
[360328738,1746743439144,-4670.0,0.0001024,2]
[360328740,1746743439156,-14425.84126215,0.0001024,2]
[360328899,1746743440681,-1026.75475967,0.0001024,2]
[360328936,1746743443540,-18112.45218601,0.0001024,2]
[360328937,1746743443550,-457.78434883,0.0001024,2]
[360328938,1746743443563,-42.21565117,0.0001024,2]
[360328939,1746743443573,-500.0,0.0001024,2]
[360328940,1746743443582,-500.0,0.0001024,2]
[360328941,1746743443591,-500.0,0.0001024,2]
[360328942,1746743443600,-632.41235453,0.0001024,2]
[360328943,1746743443610,-500.0,0.0001024,2]
[360328944,1746743443619,-500.0,0.0001024,2]
[360328945,1746743443629,-500.0,0.0001024,2]
[360328946,1746743443637,-500.0,0.0001024,2]
[360328947,1746743443647,-500.0,0.0001024,2]
[360328948,1746743443656,-500.0,0.0001024,2]
[360328949,1746743443665,-500.0,0.0001024,2]
[360328951,1746743443679,-500.0,0.0001024,2]
[360328954,1746743443688,-500.0,0.0001024,2]
[360328956,1746743443698,-500.0,0.0001024,2]
[360328958,1746743443707,-500.0,0.0001024,2]
[360328960,1746743443716,-500.0,0.0001024,2]
[360328963,1746743443726,-500.0,0.0001024,2]
[360328965,1746743443736,-500.0,0.0001024,2]
[360328966,1746743443747,-500.0,0.0001024,2]
[360328967,1746743443756,-609.71491102,0.0001024,2]
[360328968,1746743443765,-500.0,0.0001024,2]
[360328969,1746743443774,-500.0,0.0001024,2]
[360328970,1746743443783,-500.0,0.00010247,2]
[360328971,1746743443792,-500.0,0.00010247,2]
[360328972,1746743443801,-395.74199044,0.00010247,2]
[360328973,1746743443811,-276.62461029,0.00010247,2]
[360328974,1746743443823,-366230.8772172,0.00010248,2]
[360328975,1746743443834,-658.23572328,0.00010273,2]
[360328976,1746743443843,-658.23572327,0.00010419,2]
[360328977,1746743443852,-245.8572049,0.00010473,2]
[360328978,1746743443861,-250.0,0.000105,2]
[360328979,1746743443873,-658.23572327,0.00010566,2]
[360328980,1746743443883,-618.5551053,0.00010589,2]
[360328981,1746743443892,-658.23572327,0.00010712,2]
[360328982,1746743443902,-3539.209102,0.00010858,2]
[360328983,1746743443911,-658.23572327,0.00010858,2]
[360328984,1746743443920,-618.5551053,0.0001095,2]
[360328985,1746743443930,-403.88627266,0.00010958,2]
[360328986,1746743443940,-400.0,0.00010958,2]
[360328987,1746743443949,-406.34958116,0.00010958,2]
[360328988,1746743443958,-400.0,0.00010958,2]
[360328989,1746743443968,-400.0,0.00010958,2]
[360328990,1746743443977,-400.0,0.00010958,2]
[360328991,1746743443987,-400.0,0.00010958,2]
[360328992,1746743443996,-400.0,0.00010958,2]
[360328993,1746743444006,-327.9476113,0.00010958,2]
[360328994,1746743444015,-400.0,0.00010958,2]
[360328995,1746743444024,-400.0,0.00010958,2]
[360328996,1746743444033,-400.0,0.00010958,2]
[360328997,1746743444043,-423.47295902,0.00010958,2]
[360328998,1746743444052,-400.34731522,0.00010958,2]
[360328999,1746743444061,-400.0,0.00010958,2]
[360329000,1746743444071,-273.73123358,0.00010958,2]
[360329001,1746743444080,-400.0,0.00010958,2]
[360329002,1746743444089,-400.0,0.00010958,2]
[360329003,1746743444098,-400.0,0.00010958,2]
[360329004,1746743444107,-515.22484482,0.00010958,2]
[360329005,1746743444116,-1000.0,0.00010958,2]
[360329006,1746743444126,-401.76821466,0.00010958,2]
[360329007,1746743444135,-400.0,0.00010958,2]
[360329008,1746743444144,-400.0,0.00010958,2]
[360329009,1746743444153,-400.0,0.00010958,2]
[360329010,1746743444163,-400.0,0.00010958,2]
[360329011,1746743444173,-400.0,0.00010958,2]
[360329012,1746743444182,-400.0,0.00010958,2]
[360329013,1746743444190,-400.0,0.00010958,2]
[360329014,1746743444200,-400.0,0.00010958,2]
[360329015,1746743444209,-400.0,0.00010958,2]
[360329016,1746743444218,-400.0,0.00010958,2]
[360329017,1746743444228,-400.0,0.00010958,2]
[360329018,1746743444237,-400.0,0.00010958,2]
[360329019,1746743444246,-508.06792013,0.00010958,2]
[360329020,1746743444255,-400.0,0.00010958,2]
[360329021,1746743444264,-400.0,0.00010958,2]
[360329022,1746743444274,-400.0,0.00010958,2]
[360329023,1746743444283,-400.0,0.00010958,2]
[360329024,1746743444293,-400.0,0.00010958,2]
[360329025,1746743444302,-407.75983704,0.00010958,2]
[360329026,1746743444311,-400.0,0.00010958,2]
[360329027,1746743444320,-400.0,0.00010958,2]
[360329028,1746743444330,-400.0,0.00010958,2]
[360329029,1746743444339,-400.0,0.00010958,2]
[360329030,1746743444349,-418.13994744,0.00010958,2]
[360329031,1746743444359,-400.0,0.00010958,2]
[360329032,1746743444368,-400.0,0.00010958,2]
[360329033,1746743444378,-400.0,0.00010958,2]
[360329034,1746743444387,-400.0,0.00010958,2]
[360329035,1746743444396,-400.0,0.00010958,2]
[360329036,1746743444406,-402.70744648,0.00010958,2]
[360329037,1746743444416,-401.14885264,0.00010958,2]
[360329038,1746743444426,-403.29734481,0.00010958,2]
[360329039,1746743444436,-400.0,0.00010958,2]
[360329040,1746743444446,-400.0,0.00010958,2]
[360329041,1746743444456,-400.0,0.00010958,2]
[360329042,1746743444465,-400.0,0.00010958,2]
[360329043,1746743444475,-400.0,0.00010958,2]
[360329044,1746743444484,-335.88923028,0.00010958,2]
[360329045,1746743444494,-400.0,0.00010958,2]
[360329046,1746743444503,-400.0,0.00010958,2]
[360329047,1746743444513,-230.48289529,0.00010958,2]
[360329048,1746743444523,-400.0,0.00010958,2]
[360329049,1746743444532,-400.0,0.00010958,2]
[360329050,1746743444542,-400.0,0.00010958,2]
[360329051,1746743444551,-400.0,0.00010958,2]
[360329052,1746743444560,-400.0,0.00010958,2]
[360329053,1746743444573,-400.0,0.00010958,2]
[360329054,1746743444583,-416.84603272,0.00010958,2]
[360329055,1746743444593,-400.0,0.00010958,2]
[360329056,1746743444602,-400.0,0.00010958,2]
[360329057,1746743444612,-400.0,0.00010958,2]
[360329058,1746743444621,-400.0,0.00010958,2]
[360329059,1746743444630,-404.85723274,0.00010958,2]
[360329060,1746743444640,-400.0,0.00010958,2]
[360329061,1746743444650,-400.0,0.00010958,2]
[360329062,1746743444659,-400.0,0.00010958,2]
[360329063,1746743444668,-400.0,0.00010958,2]
[360329064,1746743444677,-538.15,0.00010958,2]
[360329065,1746743444687,-436.28701072,0.00010958,2]
[360329066,1746743444696,-400.0,0.00010958,2]
[360329067,1746743444705,-400.0,0.00010958,2]
[360329068,1746743444715,-400.0,0.00010958,2]
[360329069,1746743444724,-417.20663143,0.00010958,2]
[360329070,1746743444734,-400.0,0.00010958,2]
[360329071,1746743444746,-400.0,0.00010958,2]
[360329072,1746743444756,-400.0,0.00010958,2]
[360329073,1746743444765,-400.0,0.00010958,2]
[360329074,1746743444776,-400.0,0.00010958,2]
[360329075,1746743444786,-400.0,0.00010958,2]
[360329076,1746743444796,-400.0,0.00010958,2]
[360329077,1746743444805,-400.0,0.00010958,2]
[360329078,1746743444815,-400.0,0.00010958,2]
[360329079,1746743444825,-400.0,0.00010958,2]
[360329080,1746743444835,-400.0,0.00010958,2]
[360329081,1746743444844,-400.0,0.00010958,2]
[360329082,1746743444854,-400.0,0.00010958,2]
[360329083,1746743444863,-400.0,0.00010958,2]
[360329084,1746743444872,-400.0,0.00010958,2]
[360329085,1746743444882,-400.0,0.00010958,2]
[360329086,1746743444891,-528.04130905,0.00010958,2]
[360329087,1746743444900,-414.34414203,0.00010958,2]
[360329088,1746743444910,-400.0,0.00010958,2]
[360329089,1746743444920,-400.0,0.00010958,2]
[360329090,1746743444930,-400.0,0.00010958,2]
[360329091,1746743444940,-406.39877402,0.00010958,2]
[360329092,1746743444949,-403.77342157,0.00010958,2]
[360329093,1746743444958,-409.4423066,0.00010958,2]
[360329094,1746743444969,-209.99484274,0.00010958,2]
[360329095,1746743444981,-400.0,0.00010958,2]
[360329096,1746743444991,-417.97419036,0.00010958,2]
[360329097,1746743445000,-400.0,0.00010958,2]
[360329098,1746743445011,-400.0,0.00010958,2]
[360329099,1746743445022,-406.25154276,0.00010958,2]
[360329100,1746743445033,-478.24000812,0.00010958,2]
[360329101,1746743445043,-488.44576174,0.00010958,2]
[360329102,1746743445051,-412.77204886,0.00010958,2]
[360329103,1746743445061,-400.0,0.00010958,2]
[360329104,1746743445070,-400.0,0.00010958,2]
[360329105,1746743445079,-400.0,0.00010958,2]
[360329106,1746743445089,-400.0,0.00010958,2]
[360329107,1746743445099,-400.0,0.00010958,2]
[360329108,1746743445108,-400.0,0.00010958,2]
[360329109,1746743445118,-400.0,0.00010958,2]
[360329110,1746743445128,-400.0,0.00010958,2]
[360329111,1746743445137,-408.2082366,0.00010958,2]
[360329112,1746743445146,-471.83,0.00010958,2]
[360329113,1746743445156,-400.0,0.00010958,2]
[360329114,1746743445165,-400.0,0.00010958,2]
[360329115,1746743445176,-400.0,0.00010958,2]
[360329116,1746743445186,-505.89227271,0.00010958,2]
[360329117,1746743445196,-400.0,0.00010958,2]
[360329118,1746743445205,-400.0,0.00010958,2]
[360329119,1746743445215,-400.0,0.00010958,2]
[360329120,1746743445224,-400.0,0.00010958,2]
[360329121,1746743445234,-400.0,0.00010958,2]
[360329122,1746743445243,-400.0,0.00010958,2]
[360329123,1746743445252,-400.0,0.00010958,2]
[360329124,1746743445261,-400.0,0.00010958,2]
[360329125,1746743445270,-400.0,0.00010958,2]
[360329126,1746743445279,-400.0,0.00010958,2]
[360329127,1746743445289,-409.82643101,0.00010958,2]
[360329128,1746743445298,-400.0,0.00010958,2]
[360329129,1746743445307,-506.47985472,0.00010958,2]
[360329130,1746743445317,-400.0,0.00010958,2]
[360329131,1746743445326,-400.0,0.00010958,2]
[360329132,1746743445336,-400.0,0.00010958,2]
[360329133,1746743445345,-503.60542565,0.00010958,2]
[360329134,1746743445354,-323.6719324,0.00010958,2]
[360329135,1746743445363,-400.0,0.00010958,2]
[360329136,1746743445372,-400.0,0.00010958,2]
[360329137,1746743445382,-400.0,0.00010958,2]
[360329138,1746743445391,-508.99705792,0.00010958,2]
[360329139,1746743445400,-520.19820318,0.00010958,2]
[360329140,1746743445410,-400.0,0.00010958,2]
[360329141,1746743445420,-400.0,0.00010958,2]
[360329142,1746743445429,-400.0,0.00010958,2]
[360329143,1746743445438,-400.0,0.00010958,2]
[360329144,1746743445448,-400.0,0.00010958,2]
[360329145,1746743445457,-400.0,0.00010958,2]
[360329146,1746743445466,-400.0,0.00010958,2]
[360329147,1746743445477,-400.0,0.00010958,2]
[360329148,1746743445486,-400.0,0.00010958,2]
[360329149,1746743445495,-400.0,0.00010958,2]
[360329150,1746743445505,-396.74414835,0.00010958,2]
[360329151,1746743445514,-400.0,0.00010958,2]
[360329152,1746743445523,-400.0,0.00010958,2]
[360329153,1746743445532,-400.0,0.00010958,2]
[360329154,1746743445542,-400.0,0.00010958,2]
[360329155,1746743445551,-400.0,0.00010958,2]
[360329156,1746743445560,-400.0,0.00010958,2]
[360329157,1746743445569,-201.68768306,0.00010958,2]
[360329158,1746743445579,-400.0,0.00010958,2]
[360329159,1746743445588,-400.0,0.00010958,2]
[360329160,1746743445597,-421.42,0.00010958,2]
[360329161,1746743445607,-400.0,0.00010958,2]
[360329162,1746743445616,-400.0,0.00010958,2]
[360329163,1746743445625,-500.0,0.00010958,2]
[360329164,1746743445635,-400.0,0.00010958,2]
[360329165,1746743445645,-400.0,0.00010958,2]
[360329166,1746743445654,-400.0,0.00010958,2]
[360329167,1746743445664,-400.0,0.00010958,2]
[360329168,1746743445675,-408.06887972,0.00010958,2]
[360329169,1746743445684,-400.0,0.00010958,2]
[360329170,1746743445694,-400.0,0.00010958,2]
[360329171,1746743445703,-400.0,0.00010958,2]
[360329172,1746743445713,-400.0,0.00010958,2]
[360329173,1746743445722,-504.75964231,0.00010958,2]
[360329174,1746743445732,-400.0,0.00010958,2]
[360329175,1746743445748,-492.62,0.00010958,2]
[360329176,1746743445757,-400.0,0.00010958,2]
[360329177,1746743445767,-406.74767937,0.00010958,2]
[360329178,1746743445776,-407.87401806,0.00010958,2]
[360329179,1746743445787,-294.91236215,0.00010958,2]
[360329180,1746743445796,-400.0,0.00010958,2]
[360329181,1746743445806,-400.0,0.00010958,2]
[360329182,1746743445816,-400.0,0.00010958,2]
[360329183,1746743445826,-400.0,0.00010958,2]
[360329184,1746743445835,-402.5762276,0.00010958,2]
[360329185,1746743445845,-507.91441869,0.00010958,2]
[360329186,1746743445854,-400.0,0.00010958,2]
[360329187,1746743445864,-408.39554805,0.00010958,2]
[360329188,1746743445873,-400.0,0.00010958,2]
[360329189,1746743445883,-402.33079682,0.00010958,2]
[360329190,1746743445892,-400.0,0.00010958,2]
[360329191,1746743445906,-500.0,0.00010958,2]
[360329192,1746743445916,-500.0,0.00010958,2]
[360329193,1746743445927,-500.0,0.00010958,2]
[360329194,1746743445936,-404.94204184,0.00010958,2]
[360329195,1746743445947,-500.0,0.00010958,2]
[360329196,1746743445956,-500.0,0.00010958,2]
[360329197,1746743445966,-500.0,0.00010958,2]
[360329198,1746743445975,-400.0,0.00010958,2]
[360329199,1746743445984,-500.0,0.00010958,2]
[360329200,1746743445993,-174.63390857,0.00010958,2]
[360329201,1746743446003,-400.0,0.00010958,2]
[360329202,1746743446012,-400.0,0.00010958,2]
[360329203,1746743446022,-400.0,0.00010958,2]
[360329204,1746743446032,-400.0,0.00010958,2]
[360329205,1746743446041,-400.0,0.00010958,2]
[360329206,1746743446051,-400.0,0.00010958,2]
[360329207,1746743446061,-400.0,0.00010958,2]
[360329208,1746743446072,-400.0,0.00010958,2]
[360329209,1746743446081,-400.0,0.00010958,2]
[360329210,1746743446090,-400.0,0.00010958,2]
[360329211,1746743446099,-306.31585187,0.00010958,2]
[360329212,1746743446109,-418.28866978,0.00010958,2]
[360329213,1746743446118,-400.0,0.00010958,2]
[360329215,1746743446127,-402.55557749,0.00010958,2]
[360329216,1746743446137,-400.0,0.00010958,2]
[360329217,1746743446147,-404.48309821,0.00010958,2]
[360329218,1746743446156,-400.0,0.00010958,2]
[360329219,1746743446167,-400.0,0.00010958,2]
[360329220,1746743446177,-400.0,0.00010958,2]
[360329221,1746743446186,-400.0,0.00010958,2]
[360329222,1746743446196,-400.0,0.00010958,2]
[360329223,1746743446206,-487.94,0.00010958,2]
[360329224,1746743446216,-400.0,0.00010958,2]
[360329225,1746743446226,-400.0,0.00010958,2]
[360329227,1746743446235,-403.4040547,0.00010958,2]
[360329228,1746743446245,-400.0,0.00010958,2]
[360329229,1746743446255,-212.6441402,0.00010958,2]
[360329230,1746743446265,-515.77248091,0.00010958,2]
[360329231,1746743446275,-400.0,0.00010958,2]